bitfinex/quotes_BTCUSD_20251110
["timestamp","ask_amount","ask_price","bid_price","bid_amount"]
[1762813003600,0.0001437,105670.0,105660.0,0.13650431]
[1762813003803,0.32381688,105670.0,105660.0,0.13650431]
[1762813004277,0.0001437,105670.0,105660.0,0.13650431]
[1762813004526,0.32381688,105670.0,105660.0,0.13650431]
[1762813004760,0.02010902,105650.0,105640.0,0.03571]
[1762813004980,0.8560865,105650.0,105640.0,0.03571]
[1762813005211,0.91644984,105650.0,105640.0,0.05141]
[1762813005435,0.59277666,105650.0,105640.0,0.05141]
[1762813005678,0.91644984,105650.0,105640.0,0.05141]
[1762813006367,0.91644984,105650.0,105640.0,0.05241]
[1762813007276,0.91644984,105650.0,105640.0,0.05341]
[1762813009836,1.05073385,105650.0,105640.0,0.0295]
[1762813010053,1.91026369,105650.0,105640.0,0.002]
[1762813010266,1.59543379,105650.0,105640.0,0.002]
[1762813010466,1.91910697,105650.0,105640.0,0.002]
[1762813010949,1.00542779,105650.0,105640.0,0.001]
[1762813011223,0.97031953,105650.0,105640.0,0.001]
[1762813011445,0.5685045,105640.0,105630.0,0.03571]
[1762813011667,0.92287014,105640.0,105630.0,0.03571]
[1762813011863,0.92287014,105640.0,105630.0,0.05141]
[1762813012112,0.59919696,105640.0,105630.0,0.05141]
[1762813012291,0.92287014,105640.0,105630.0,0.05141]
[1762813012492,1.24654332,105640.0,105630.0,0.05141]
[1762813013061,0.92287014,105640.0,105630.0,0.05141]
[1762813013330,0.95354595,105640.0,105630.0,0.0275]
[1762813013492,1.27721913,105640.0,105630.0,0.05226]
[1762813013922,0.95354595,105640.0,105630.0,0.05226]
[1762813014667,0.92384394,105640.0,105630.0,0.05226]
[1762813017630,1.24751712,105640.0,105630.0,0.05226]
[1762813017839,0.92384394,105640.0,105630.0,0.05226]
[1762813018040,0.95451975,105640.0,105630.0,0.05226]
[1762813018333,1.27819293,105640.0,105630.0,0.05226]
[1762813018477,1.29304204,105640.0,105630.0,0.05226]
[1762813019400,0.96936886,105640.0,105630.0,0.05226]
[1762813021802,0.96925984,105640.0,105630.0,0.05226]
[1762813022005,0.01484911,105640.0,105630.0,0.05226]
[1762813022309,0.53308681,105650.0,105630.0,0.05226]
[1762813022539,0.69833944,105650.0,105640.0,0.13724431]
[1762813022745,0.88764374,105650.0,105640.0,0.13724431]
[1762813023170,0.91831955,105650.0,105640.0,0.13724431]
[1762813023521,0.91931955,105650.0,105640.0,0.13724431]
[1762813024055,0.91831955,105650.0,105640.0,0.13724431]
[1762813027115,0.72901525,105650.0,105640.0,0.13724431]
[1762813027321,0.91831955,105650.0,105640.0,0.13724431]
[1762813031369,0.59464637,105650.0,105640.0,0.13724431]
[1762813031581,0.91831955,105650.0,105640.0,0.13724431]
[1762813031792,0.59464637,105650.0,105640.0,0.13724431]
[1762813031966,0.91831955,105650.0,105640.0,0.13724431]
[1762813032751,0.91831955,105650.0,105640.0,0.05215]
[1762813032962,0.94524471,105650.0,105640.0,0.02723]
[1762813033165,0.94524471,105650.0,105640.0,0.05215]
[1762813033366,0.91831955,105650.0,105640.0,0.05215]
[1762813036928,0.91814817,105650.0,105640.0,0.05215]
[1762813038281,0.72884387,105650.0,105640.0,0.05215]
[1762813039891,0.91814817,105650.0,105640.0,0.05215]
[1762813040230,0.72884387,105650.0,105640.0,0.05215]
[1762813042910,0.91814817,105650.0,105640.0,0.05215]
[1762813043595,0.72884387,105650.0,105640.0,0.05215]
[1762813044186,0.38523305,105650.0,105640.0,0.05215]
[1762813044373,0.35505904,105650.0,105640.0,0.13724431]
[1762813044740,0.40624186,105650.0,105640.0,0.13724431]
[1762813045230,0.38624186,105650.0,105640.0,0.13724431]
[1762813047261,0.38624186,105650.0,105640.0,0.13724431]
[1762813048279,0.57554616,105650.0,105640.0,0.13724431]
[1762813048512,0.38624186,105650.0,105640.0,0.13724431]
[1762813051850,0.70924186,105650.0,105640.0,0.13724431]
[1762813054131,0.38574006,105650.0,105640.0,0.13724431]
[1762813054297,0.70924186,105650.0,105640.0,0.13724431]
[1762813054513,0.38624186,105650.0,105640.0,0.13724431]
[1762813058115,0.06274006,105650.0,105640.0,0.13724431]
[1762813058323,0.38624186,105650.0,105640.0,0.13724431]
[1762813059123,0.06274006,105650.0,105640.0,0.13724431]
[1762813059375,0.38624186,105650.0,105640.0,0.13724431]
[1762813060242,0.06274006,105650.0,105640.0,0.13724431]
[1762813060466,0.38624186,105650.0,105640.0,0.13724431]
[1762813060914,0.06274006,105650.0,105640.0,0.13724431]
[1762813061084,0.38624186,105650.0,105640.0,0.13724431]
[1762813061498,0.06274006,105650.0,105640.0,0.13724431]
[1762813061903,0.38624186,105650.0,105640.0,0.13724431]
[1762813062286,0.06274006,105650.0,105640.0,0.13724431]
[1762813062476,0.38624186,105650.0,105640.0,0.13724431]
[1762813063923,0.06274006,105650.0,105640.0,0.13724431]
[1762813064309,0.38624186,105650.0,105640.0,0.13724431]
[1762813064742,0.06274006,105650.0,105640.0,0.13724431]
[1762813064871,0.38624186,105650.0,105640.0,0.13724431]
[1762813065967,0.06274006,105650.0,105640.0,0.13724431]
[1762813066169,0.38624186,105650.0,105640.0,0.13724431]
[1762813067391,0.06274006,105650.0,105640.0,0.13724431]
[1762813067842,0.38624186,105650.0,105640.0,0.13724431]
[1762813069615,0.06274006,105650.0,105640.0,0.13724431]
[1762813069812,0.38624186,105650.0,105640.0,0.13724431]
[1762813070200,0.06274006,105650.0,105640.0,0.13724431]
[1762813075656,0.38624186,105650.0,105640.0,0.13724431]
[1762813076840,0.06274006,105650.0,105640.0,0.13724431]
[1762813077045,0.38624186,105650.0,105640.0,0.13724431]
[1762813077620,0.06274006,105650.0,105640.0,0.13724431]
[1762813077823,0.38624186,105650.0,105640.0,0.13724431]
[1762813081059,0.06274006,105650.0,105640.0,0.13724431]
[1762813081336,0.38624186,105650.0,105640.0,0.13724431]
[1762813090741,0.06274006,105650.0,105640.0,0.13724431]
[1762813090933,0.38624186,105650.0,105640.0,0.13724431]
[1762813093558,0.06274006,105650.0,105640.0,0.13724431]
[1762813093767,0.03155724,105650.0,105640.0,0.46074611]
[1762813093986,0.53289755,105660.0,105640.0,0.13724431]
[1762813094198,0.03077434,105650.0,105640.0,0.12526544]
[1762813094810,0.03077434,105650.0,105640.0,0.16611544]
[1762813097287,0.35427614,105650.0,105640.0,0.16611544]
[1762813098815,0.03077434,105650.0,105640.0,0.16611544]
[1762813110056,0.18941274,105670.0,105640.0,0.50845945]
[1762813110277,0.83582451,105670.0,105660.0,0.11379431]
[1762813110486,0.89940814,105670.0,105660.0,0.11379431]
[1762813110689,0.89940814,105670.0,105660.0,0.13814431]
[1762813111048,0.89940759,105670.0,105660.0,0.13814431]
[1762813111588,0.71013912,105670.0,105660.0,0.13814431]
[1762813111788,0.89940759,105670.0,105660.0,0.13814431]
[1762813112511,0.89940759,105670.0,105660.0,0.14114431]
[1762813113446,0.71013912,105670.0,105660.0,0.14114431]
[1762813113877,0.0001437,105670.0,105660.0,0.14114431]
[1762813114450,0.0001437,105670.0,105660.0,0.16959155]
[1762813115276,0.0001437,105670.0,105660.0,0.18852018]
[1762813116577,0.0001437,105670.0,105660.0,0.18552018]
[1762813116937,0.0001437,105670.0,105660.0,0.19052018]
[1762813117166,0.0001437,105670.0,105660.0,0.51393197]
[1762813117369,0.0001437,105670.0,105660.0,0.68428973]
[1762813117575,0.0001437,105670.0,105660.0,0.49500334]
[1762813117807,0.0001437,105670.0,105660.0,0.50500333]
[1762813118218,0.0001437,105670.0,105660.0,0.69128972]
[1762813118417,0.0001437,105670.0,105660.0,0.68928972]
[1762813118824,0.0001437,105670.0,105660.0,0.69228972]
[1762813119019,0.0001437,105670.0,105660.0,0.69628972]
[1762813119224,0.0001437,105670.0,105660.0,0.50700333]
[1762813120248,0.0001437,105670.0,105660.0,0.69628972]
[1762813120444,0.0001437,105670.0,105660.0,0.50700333]
[1762813121437,0.0001437,105670.0,105660.0,0.18359154]
[1762813121634,0.0001437,105670.0,105660.0,0.20252017]
[1762813125651,0.0001437,105670.0,105660.0,0.19252018]
[1762813125799,0.0001437,105670.0,105660.0,0.20252017]
[1762813127030,0.0001437,105670.0,105660.0,0.18359154]
[1762813127249,0.0001437,105670.0,105660.0,0.20252017]
[1762813127893,0.0001437,105670.0,105660.0,0.18359154]
[1762813131853,0.0001437,105670.0,105660.0,0.39180656]
[1762813132045,0.0001437,105670.0,105660.0,0.37287793]
[1762813132486,0.0001437,105670.0,105660.0,0.18359154]
[1762813132628,0.0001437,105670.0,105660.0,0.17359155]
[1762813132831,0.0001437,105670.0,105660.0,0.18359154]
[1762813133276,0.0001437,105670.0,105660.0,0.37287793]
[1762813133619,0.0001437,105670.0,105660.0,0.18359154]
[1762813133821,0.0001437,105670.0,105660.0,0.20252017]
[1762813134023,3.7e-06,105670.0,105660.0,0.72510932]
[1762813134231,0.0004,105680.0,105660.0,0.70618069]
[1762813134452,0.0004,105680.0,105670.0,0.5838671]
[1762813134622,0.0004,105680.0,105670.0,0.37567179]
[1762813134863,0.0004,105680.0,105670.0,0.26996787]
[1762813136116,0.0004,105680.0,105670.0,0.27096787]
[1762813136339,0.0004,105690.0,105670.0,0.60427063]
[1762813136532,0.0004,105690.0,105680.0,0.32700487]
[1762813137120,0.0004,105690.0,105680.0,0.35544138]
[1762813137337,0.0004,105690.0,105680.0,0.16619082]
[1762813137595,0.0004,105690.0,105680.0,0.37436643]
[1762813137846,0.0004,105690.0,105680.0,0.35744138]
[1762813138570,0.0004,105690.0,105680.0,0.35844138]
[1762813140159,0.0004,105690.0,105680.0,0.16919082]
[1762813140338,0.0004,105690.0,105680.0,0.16619082]
[1762813140801,0.0004,105690.0,105680.0,0.17319082]
[1762813141291,0.0004,105690.0,105680.0,0.36244138]
[1762813141527,0.0004,105690.0,105680.0,0.68585317]
[1762813141953,0.0004,105690.0,105680.0,0.69574414]
[1762813142437,0.0004,105690.0,105680.0,0.70574413]
[1762813143085,0.64641179,105720.0,105690.0,0.19869254]
[1762813143288,0.64655541,105720.0,105710.0,0.11770977]
[1762813143628,0.64655541,105720.0,105710.0,0.14254977]
[1762813143811,0.64655541,105720.0,105710.0,0.17098197]
[1762813144281,0.64655541,105720.0,105710.0,0.14254977]
[1762813146236,0.67311742,105720.0,105710.0,0.14254977]
[1762813146448,0.34970563,105720.0,105710.0,0.14254977]
[1762813146864,0.34970563,105720.0,105710.0,0.17098084]
[1762813149317,0.00014362,105720.0,105710.0,0.18990052]
[1762813150507,0.00014362,105720.0,105710.0,0.19090052]
[1762813151033,0.00014362,105720.0,105710.0,0.19190052]
[1762813151858,0.32355541,105720.0,105710.0,0.19190052]
[1762813152094,0.32355541,105720.0,105710.0,0.17298084]
[1762813152303,0.00014362,105720.0,105710.0,0.17298084]
[1762813152520,0.32355541,105720.0,105710.0,0.19190052]
[1762813152723,0.32355541,105720.0,105710.0,0.17298084]
[1762813154850,0.35460144,105720.0,105710.0,0.17298084]
[1762813155062,0.32355541,105720.0,105710.0,0.17298084]
[1762813156280,0.35460144,105720.0,105710.0,0.17298084]
[1762813156890,0.32355541,105720.0,105710.0,0.17298084]
[1762813160841,0.00014362,105720.0,105710.0,0.17298084]
[1762813161048,0.6461628,105720.0,105710.0,0.17298084]
[1762813166393,0.32315321,105720.0,105710.0,0.17298084]
[1762813174302,0.00014362,105720.0,105710.0,0.17298084]
[1762813174446,0.32315321,105720.0,105710.0,0.19190052]
[1762813174657,0.32315321,105720.0,105710.0,0.17298084]
[1762813177963,0.00014362,105720.0,105710.0,0.17298084]
[1762813178198,0.32315321,105720.0,105710.0,0.17298084]
[1762813181851,0.00014362,105720.0,105710.0,0.17298084]
[1762813182059,0.32315321,105720.0,105710.0,0.17298084]
[1762813186328,0.00014362,105720.0,105710.0,0.17298084]
[1762813186506,0.32315321,105720.0,105710.0,0.17298084]
[1762813187881,0.00014362,105720.0,105710.0,0.17298084]
[1762813188091,0.32315321,105720.0,105710.0,0.17298084]
[1762813191151,0.00014362,105720.0,105710.0,0.17298084]
[1762813191758,0.32315321,105720.0,105710.0,0.17298084]
[1762813196271,0.00014362,105720.0,105710.0,0.17298084]
[1762813196595,0.32315321,105720.0,105710.0,0.17298084]
[1762813196814,0.00014362,105720.0,105710.0,0.17298084]
[1762813197058,0.32315321,105720.0,105710.0,0.17298084]
[1762813199939,0.35445562,105740.0,105730.0,0.08988977]
[1762813200162,0.32340959,105740.0,105730.0,0.14335977]
[1762813200579,0.32340959,105740.0,105730.0,0.17178462]
[1762813201182,0.32340959,105740.0,105730.0,0.17278462]
[1762813201494,0.0004,105750.0,105730.0,0.51471031]
[1762813201704,0.0004,105750.0,105740.0,0.37647959]
[1762813201910,0.0004,105750.0,105740.0,0.05347]
[1762813202123,0.0004,105750.0,105740.0,0.08188935]
[1762813202325,0.0004,105760.0,105740.0,0.40489894]
[1762813202542,0.32388814,105760.0,105750.0,0.14335977]
[1762813202966,0.64689773,105760.0,105750.0,0.14335977]
[1762813203171,0.64689773,105760.0,105750.0,0.17177912]
[1762813204199,0.67794376,105760.0,105750.0,0.17277912]
[1762813204319,0.64689773,105760.0,105750.0,0.17277912]
[1762813205174,0.64689773,105760.0,105750.0,0.17577912]
[1762813205763,0.67794376,105760.0,105750.0,0.17577912]
[1762813206362,0.86705117,105760.0,105750.0,0.17577912]
[1762813206547,0.67794376,105760.0,105750.0,0.17577912]
[1762813206920,0.22103199,105760.0,105750.0,0.17577912]
[1762813207121,0.67794376,105760.0,105750.0,0.17577912]
[1762813207578,0.64689773,105760.0,105750.0,0.17577912]
[1762813209074,0.32388814,105760.0,105750.0,0.17577912]
[1762813213078,0.64689773,105760.0,105750.0,0.17577912]
[1762813213364,0.32388814,105760.0,105750.0,0.17577912]
[1762813217317,0.64689773,105760.0,105750.0,0.17577912]
[1762813217537,0.32388814,105760.0,105750.0,0.17577912]
[1762813218463,0.00087855,105760.0,105750.0,0.17577912]
[1762813218686,0.32388814,105760.0,105750.0,0.17577912]
[1762813218904,0.00087855,105760.0,105750.0,0.17577912]
[1762813219155,0.32388814,105760.0,105750.0,0.17577912]
[1762813220889,0.00087855,105760.0,105750.0,0.17577912]
[1762813221107,0.32388814,105760.0,105750.0,0.17577912]
[1762813221689,0.00087855,105760.0,105750.0,0.17577912]
[1762813222302,0.00087855,105760.0,105750.0,0.51770123]
[1762813222485,0.00087855,105760.0,105750.0,0.17577912]
[1762813222690,0.00087855,105760.0,105750.0,0.19469164]
[1762813226367,0.00087855,105760.0,105750.0,0.51769164]
[1762813226587,0.00087855,105760.0,105750.0,0.50877911]
[1762813230201,0.00087855,105760.0,105750.0,0.83145977]
[1762813230488,0.00087855,105760.0,105750.0,0.51867008]
[1762813231096,0.00087855,105760.0,105750.0,0.19567008]
[1762813234563,0.00087855,105760.0,105750.0,0.51867008]
[1762813237480,0.00087855,105760.0,105750.0,0.50867009]
[1762813243265,0.32355921,105760.0,105750.0,0.49877912]
[1762813243694,0.00087855,105760.0,105750.0,0.49877912]
[1762813251307,0.00087855,105760.0,105750.0,0.82145978]
[1762813252073,0.00087855,105760.0,105750.0,0.83135075]
[1762813252433,0.00087855,105760.0,105750.0,0.50867009]
[1762813261612,0.00087855,105760.0,105750.0,0.83135075]
[1762813261817,0.0004,105780.0,105760.0,0.323]
[1762813262058,0.00054353,105780.0,105770.0,0.11887977]
[1762813262211,0.00054353,105780.0,105770.0,0.14138977]
[1762813263482,0.32322419,105780.0,105770.0,0.14138977]
[1762813264265,0.32322419,105780.0,105770.0,0.14238977]
[1762813264880,0.00054353,105780.0,105770.0,0.14238977]
[1762813265082,0.32322419,105780.0,105770.0,0.14238977]
[1762813265470,0.32322419,105780.0,105770.0,0.14438977]
[1762813267927,0.64590485,105780.0,105770.0,0.14438977]
[1762813273550,0.90220481,105780.0,105770.0,0.14438977]
[1762813273753,0.92220481,105780.0,105770.0,0.12187977]
[1762813273955,0.92231383,105780.0,105770.0,0.01535]
[1762813274167,0.94894739,105780.0,105770.0,0.01535]
[1762813274343,1.24499449,105780.0,105770.0,0.01535]
[1762813274990,1.24499449,105780.0,105770.0,0.01335]
[1762813275225,1.24499449,105780.0,105770.0,0.02999]
[1762813275432,1.24499449,105780.0,105770.0,0.03099]
[1762813275687,1.25982216,105780.0,105770.0,0.02999]
[1762813275897,1.24499449,105780.0,105770.0,0.02999]
[1762813276160,1.24499449,105780.0,105770.0,0.0525]
[1762813276366,0.92231383,105780.0,105770.0,0.0525]
[1762813277828,0.92231383,105780.0,105770.0,0.02999]
[1762813278864,0.9217703,105780.0,105770.0,0.02999]
[1762813279378,0.9217703,105780.0,105770.0,0.0525]
[1762813280341,0.95457507,105780.0,105770.0,0.0525]
[1762813280950,0.95609023,105780.0,105770.0,0.02999]
[1762813283058,1.27911982,105780.0,105770.0,0.02999]
[1762813285231,1.27911982,105780.0,105770.0,0.05324]
[1762813288181,1.27911982,105780.0,105770.0,0.02999]
[1762813289374,1.27911982,105780.0,105770.0,0.01335]
[1762813294879,1.60211982,105780.0,105770.0,0.001]
[1762813295058,1.60211982,105780.0,105770.0,0.01234]
[1762813295277,1.60211982,105780.0,105770.0,0.02786]
[1762813295481,1.60211982,105780.0,105770.0,0.01234]
[1762813299354,1.60211982,105780.0,105770.0,0.001]
[1762813302316,1.61098987,105780.0,105770.0,0.001]
[1762813303241,1.61076559,105780.0,105770.0,0.001]
[1762813303799,2.60695499,105780.0,105770.0,0.001]
[1762813304007,2.62470949,105780.0,105770.0,0.001]
[1762813304688,3.09912949,105780.0,105770.0,0.001]
[1762813304894,0.24528969,105760.0,105750.0,0.10224977]
[1762813305105,1.2136806,105760.0,105750.0,0.10224977]
[1762813305297,1.27904656,105760.0,105750.0,0.10224977]
[1762813306882,1.27904656,105760.0,105750.0,0.08988977]
[1762813306883,1.62995407,105760.0,105750.0,0.08988977]
[1762813307092,1.60223026,105760.0,105750.0,0.08988977]
[1762813307265,1.60223026,105760.0,105750.0,0.09088977]
[1762813308000,1.60223026,105760.0,105750.0,0.08988977]
[1762813308125,1.60215558,105760.0,105750.0,0.08981509]
[1762813308329,1.60315558,105760.0,105750.0,0.08981509]
[1762813310477,0.18923431,105750.0,105740.0,0.01236]
[1762813310705,0.88763302,105750.0,105740.0,0.01236]
[1762813310824,0.92019421,105750.0,105740.0,0.01236]
[1762813311780,0.92019421,105750.0,105730.0,0.12447977]
[1762813311781,0.22532546,105740.0,105730.0,0.12447977]
[1762813311985,0.93628536,105740.0,105730.0,0.12447977]
[1762813312304,0.93628536,105740.0,105730.0,0.13999977]
[1762813312523,0.93639438,105740.0,105730.0,0.11674977]
[1762813312737,1.27919135,105740.0,105730.0,0.10122977]
[1762813312935,1.27928167,105740.0,105730.0,0.10122977]
[1762813313340,1.60228167,105740.0,105730.0,0.10122977]
[1762813313900,1.2791798,105740.0,105730.0,0.10222977]
[1762813314101,1.2791798,105740.0,105730.0,0.10422977]
[1762813314292,1.2791798,105740.0,105730.0,0.09288977]
[1762813317763,1.2791798,105740.0,105730.0,0.003]
[1762813323011,1.60197677,105740.0,105730.0,0.003]
[1762813324302,1.62977526,105740.0,105730.0,0.003]
[1762813324499,1.76708939,105740.0,105730.0,0.003]
[1762813324700,1.65689575,105740.0,105730.0,0.003]
[1762813325125,1.65689575,105740.0,105730.0,0.002]
[1762813325495,1.65889575,105740.0,105730.0,0.002]
[1762813326095,0.24536124,105720.0,105710.0,0.12489977]
[1762813326282,0.89095518,105720.0,105710.0,0.12489977]
[1762813326487,0.92351637,105720.0,105710.0,0.14114977]
[1762813327779,0.89095518,105720.0,105710.0,0.14214977]
[1762813329667,0.89095518,105720.0,105710.0,0.05226]
[1762813330985,0.87095518,105720.0,105710.0,0.05226]
[1762813333595,0.22536124,105720.0,105710.0,0.05226]
[1762813333795,0.22536124,105720.0,105710.0,0.01265]
[1762813334076,0.89095518,105720.0,105710.0,0.05226]
[1762813334809,0.92351637,105720.0,105710.0,0.05226]
[1762813335175,0.89095518,105720.0,105710.0,0.05226]
[1762813341813,0.95632114,105720.0,105710.0,0.05226]
[1762813342020,0.89095518,105720.0,105710.0,0.05226]
[1762813342428,0.89980704,105720.0,105710.0,0.05226]
[1762813342841,0.965173,105720.0,105710.0,0.05226]
[1762813343045,0.96569452,105720.0,105710.0,0.05226]
[1762813343256,0.90032856,105720.0,105710.0,0.05226]
[1762813343761,0.93288975,105720.0,105710.0,0.05226]
[1762813343974,0.60983202,105720.0,105710.0,0.05226]
[1762813344178,0.57727083,105720.0,105710.0,0.05226]
[1762813344587,0.90032856,105720.0,105710.0,0.05226]
[1762813350222,0.8914767,105720.0,105710.0,0.05226]
[1762813350441,0.95684266,105720.0,105710.0,0.05226]
[1762813350653,0.9328991,105720.0,105710.0,0.05226]
[1762813351308,0.96570387,105720.0,105710.0,0.05226]
[1762813352589,0.9328991,105720.0,105710.0,0.05226]
[1762813353436,0.96570387,105720.0,105710.0,0.05226]
[1762813353649,0.9328991,105720.0,105710.0,0.05226]
[1762813354313,0.96570387,105720.0,105710.0,0.05226]
[1762813354726,0.90033791,105720.0,105710.0,0.05226]
[1762813356389,0.8914767,105720.0,105710.0,0.05226]
[1762813361212,0.95684266,105720.0,105710.0,0.05226]
[1762813361542,0.92403789,105720.0,105710.0,0.05226]
[1762813361937,0.95684266,105720.0,105710.0,0.05226]
[1762813362139,0.92403789,105720.0,105710.0,0.05226]
[1762813362490,0.95684266,105720.0,105710.0,0.05226]
[1762813362701,0.92403789,105720.0,105710.0,0.05226]
[1762813362908,0.8914767,105720.0,105710.0,0.05226]
[1762813363315,0.95684266,105720.0,105710.0,0.05226]
[1762813364126,0.95695168,105720.0,105710.0,0.001]
[1762813365758,0.95795168,105720.0,105710.0,0.001]
[1762813366159,0.20919685,105710.0,105700.0,0.10122977]
[1762813366380,0.56231098,105710.0,105700.0,0.10122977]
[1762813366702,0.56231098,105710.0,105700.0,0.14137977]
[1762813367271,0.56231098,105710.0,105700.0,0.11746977]
[1762813369517,0.56231098,105710.0,105700.0,0.14237977]
[1762813370757,0.23925325,105710.0,105700.0,0.14237977]
[1762813370959,0.53225458,105710.0,105700.0,0.14237977]
[1762813376774,0.56231098,105710.0,105700.0,0.14237977]
[1762813380673,0.54231098,105710.0,105700.0,0.14237977]
[1762813382030,1.30644185,105710.0,105700.0,1e-08]
[1762813382232,1.98872306,105710.0,105700.0,1e-08]
[1762813382432,1.62938293,105710.0,105700.0,1e-08]
[1762813382584,1.74717093,105710.0,105700.0,1e-08]
[1762813382975,0.24545075,105670.0,105660.0,0.10261977]
[1762813383185,0.24545075,105670.0,105660.0,0.12650977]
[1762813383186,0.59856488,105670.0,105660.0,0.12650977]
[1762813383378,0.59856488,105670.0,105660.0,0.14171977]
[1762813384057,0.59865513,105670.0,105660.0,0.14171977]
[1762813384281,0.59865513,105670.0,105660.0,0.14271977]
[1762813385137,0.59865513,105670.0,105660.0,0.14471977]
[1762813392211,0.2755974,105670.0,105660.0,0.14471977]
[1762813392411,0.59865513,105670.0,105660.0,0.14471977]
[1762813394501,0.65715522,105670.0,105660.0,0.09328977]
[1762813394675,0.62968099,105670.0,105660.0,0.09328977]
[1762813394818,0.62968099,105670.0,105660.0,0.10561977]
[1762813395376,0.95273872,105670.0,105660.0,0.09328977]
[1762813395537,0.98118607,105670.0,105660.0,0.09328977]
[1762813395976,1.30418607,105670.0,105660.0,0.10561977]
[1762813396129,0.65807061,105670.0,105660.0,0.10561977]
[1762813396328,0.98112834,105670.0,105660.0,0.10561977]
[1762813396528,1.30418607,105670.0,105660.0,0.10561977]
[1762813396779,0.98112834,105670.0,105660.0,0.10561977]
[1762813396976,1.30418607,105670.0,105660.0,0.10561977]
[1762813399419,1.30418607,105670.0,105660.0,0.09328977]
[1762813402300,0.65807061,105670.0,105660.0,0.10466977]
[1762813402451,0.98112834,105670.0,105660.0,0.10466977]
[1762813402868,9.025e-05,105670.0,105660.0,0.14386977]
[1762813403461,0.35933026,105670.0,105660.0,0.14386977]
[1762813405059,0.35953826,105670.0,105660.0,0.14386977]
[1762813405264,0.03627253,105670.0,105660.0,0.14386977]
[1762813405467,0.35953826,105670.0,105660.0,0.14386977]
[1762813406213,0.03627253,105670.0,105660.0,0.14386977]
[1762813406412,0.35953826,105670.0,105660.0,0.14386977]
[1762813406831,0.3517109,105690.0,105660.0,0.4671355]
[1762813407066,0.18923266,105690.0,105680.0,0.10126977]
[1762813407249,0.18923266,105690.0,105680.0,0.11729977]
[1762813407423,0.22541494,105690.0,105680.0,0.14046977]
[1762813408034,0.54868067,105690.0,105680.0,0.14046977]
[1762813408240,0.60965391,105690.0,105680.0,0.14046977]
[1762813408446,0.61065391,105690.0,105680.0,0.14046977]
[1762813408648,0.60965391,105690.0,105680.0,0.14046977]
[1762813409070,0.61065391,105690.0,105680.0,0.14046977]
[1762813410092,0.54968067,105690.0,105680.0,0.14046977]
[1762813411107,0.36044801,105690.0,105680.0,0.14046977]
[1762813411311,0.35944801,105690.0,105680.0,0.14146977]
[1762813412374,0.57712079,105690.0,105680.0,0.14146977]
[1762813412762,0.90038652,105690.0,105680.0,0.14146977]
[1762813413819,0.25385506,105690.0,105680.0,0.14146977]
[1762813414031,0.90038652,105690.0,105680.0,0.14146977]
[1762813415780,0.93044292,105690.0,105680.0,0.14146977]
[1762813417445,0.90038652,105690.0,105680.0,0.14146977]
[1762813417860,0.18926847,105670.0,105660.0,0.01225855]
[1762813418060,0.92214763,105670.0,105660.0,0.10214832]
[1762813418220,0.89198221,105670.0,105660.0,0.14134832]
[1762813418424,0.92053883,105670.0,105660.0,0.14134832]
[1762813419241,0.95059523,105670.0,105660.0,0.14234832]
[1762813419478,0.95059523,105670.0,105660.0,0.10514832]
[1762813419707,0.98151207,105670.0,105660.0,0.10514832]
[1762813423425,0.98151207,105670.0,105660.0,0.00387855]
[1762813423635,1.65525203,105670.0,105660.0,0.00387855]
[1762813423874,1.30451207,105670.0,105660.0,0.00387855]
[1762813424693,1.6277778,105670.0,105660.0,0.00387855]
[1762813425445,1.3047778,105670.0,105660.0,0.00387855]
[1762813426266,1.33225203,105670.0,105660.0,0.00387855]
[1762813426920,1.0089863,105670.0,105660.0,0.00387855]
[1762813427281,0.98151207,105670.0,105660.0,0.00387855]
[1762813428277,0.98151207,105670.0,105660.0,0.01525855]
[1762813428475,0.92053883,105670.0,105660.0,0.01525855]
[1762813428671,0.92053883,105670.0,105660.0,0.03128855]
[1762813428914,0.9230546,105670.0,105660.0,0.05445855]
[1762813429334,0.953111,105670.0,105660.0,0.05445855]
[1762813429550,0.9230546,105670.0,105660.0,0.05445855]
[1762813429908,0.9230546,105670.0,105660.0,0.03128855]
[1762813430110,0.9230546,105670.0,105660.0,0.00387855]
[1762813430297,0.953111,105670.0,105660.0,0.00387855]
[1762813432607,0.98402784,105670.0,105660.0,0.00387855]
[1762813437261,0.953111,105670.0,105660.0,0.00387855]
[1762813437493,0.95349278,105670.0,105660.0,0.00387855]
[1762813438659,0.27851372,105670.0,105660.0,0.05641855]
[1762813438866,0.55123225,105670.0,105660.0,0.03201855]
[1762813439058,0.58167043,105670.0,105660.0,0.03201855]
[1762813439265,0.90493616,105670.0,105660.0,0.01591855]
[1762813441322,0.55123225,105670.0,105660.0,0.01591855]
[1762813441532,0.55123225,105670.0,105660.0,0.05641855]
[1762813442399,0.36196378,105670.0,105660.0,0.05641855]
[1762813443030,0.3257815,105670.0,105660.0,0.05641855]
[1762813443448,0.55123225,105670.0,105660.0,0.05641855]
[1762813443881,0.19869429,105690.0,105670.0,0.08988977]
[1762813444057,0.52194644,105700.0,105670.0,0.10192977]
[1762813444215,0.52194644,105700.0,105680.0,0.02814]
[1762813444216,0.18923359,105690.0,105680.0,0.02814]
[1762813444756,0.21967177,105690.0,105680.0,0.02814]
[1762813445435,0.57911978,105690.0,105680.0,0.02814]
[1762813445872,0.57911978,105690.0,105680.0,0.02914]
[1762813446528,0.57911978,105690.0,105680.0,0.05354]
[1762813446741,0.25585405,105690.0,105680.0,0.05354]
[1762813446942,0.35944801,105690.0,105680.0,0.05354]
[1762813447148,0.54868067,105690.0,105680.0,0.05354]
[1762813447992,0.32326573,105690.0,105680.0,0.05354]
[1762813450704,0.32326573,105690.0,105680.0,0.05254]
[1762813451119,0.32373599,105690.0,105680.0,0.05454]
[1762813451268,0.00047026,105690.0,105680.0,0.05454]
[1762813451474,0.32373599,105690.0,105680.0,0.05554]
[1762813454833,0.51296865,105690.0,105680.0,0.05554]
[1762813455048,0.32373599,105690.0,105680.0,0.05554]
[1762813455168,0.51296865,105690.0,105680.0,0.05554]
[1762813455375,0.32373599,105690.0,105680.0,0.05554]
[1762813455833,0.51296865,105690.0,105680.0,0.05554]
[1762813459579,0.32373599,105690.0,105680.0,0.05554]
[1762813459911,0.51296865,105690.0,105680.0,0.05554]
[1762813461780,0.32373599,105690.0,105680.0,0.05554]
[1762813461921,0.51296865,105690.0,105680.0,0.05554]
[1762813462684,0.32373599,105690.0,105680.0,0.05554]
[1762813462882,0.51296865,105690.0,105680.0,0.05554]
[1762813463504,0.32373599,105690.0,105680.0,0.05554]
[1762813464892,0.32360776,105690.0,105680.0,0.05554]
[1762813466202,0.51284042,105690.0,105680.0,0.05554]
[1762813466574,0.32360776,105690.0,105680.0,0.05554]
[1762813469493,0.00047026,105690.0,105680.0,0.05554]
[1762813470699,0.00047026,105690.0,105680.0,0.38843097]
[1762813470899,0.00047026,105690.0,105680.0,0.39843096]